fUSD/lending_fUSD_20251024
["ID","MTS","AMOUNT","RATE_DAILY","PERIOD"]
[392316914,1761333031977,-11663.60353435,0.0003822,2]
[392316915,1761333031988,-2500.0,0.0003822,2]
[392316916,1761333031997,-172.33178044,0.00038319,15]
[392316917,1761333032009,-10964.06218748,0.00038319,2]
[392316918,1761333032019,-66818.51363907,0.0003832,2]
[392316923,1761333037653,-794.82118149,0.0003832,2]
[392316925,1761333039802,-22011.01994653,0.0003832,2]
[392316997,1761333045782,-620.3022021,0.00037401,15]
[392316998,1761333045796,-25.97754171,0.00037401,15]
[392316999,1761333045806,-613.80026456,0.0003822,2]
[392317025,1761333908095,1436698.84911723,0.00015,2]
[392317030,1761334063715,-185.44321099,0.00016,2]
[392317035,1761334073569,555.07691965,0.00022,4]
[392317036,1761334075530,1379311.11649976,0.00015,2]
[392320380,1761334231923,-32.14711231,0.00016,2]
[392320382,1761334231934,-250.0,0.00021141,2]
[392320383,1761334231944,-185.42162884,0.00032236,2]
[392320384,1761334231954,-152.38,0.00032336,2]
[392320385,1761334231964,-251.3,0.00034602,2]
[392320386,1761334231974,-168.0,0.00034611,2]
[392320388,1761334231984,-213.659,0.00034611,39]
[392320389,1761334231994,-150.0,0.00034644,7]
[392320390,1761334232005,-150.0,0.00034644,7]
[392320391,1761334232015,-150.0,0.00034644,7]
[392320393,1761334232024,-150.0,0.00034644,7]
[392320394,1761334232034,-150.0,0.00034644,7]
[392320395,1761334232043,-150.0,0.00034644,7]
[392320396,1761334232053,-150.0,0.00034644,7]
[392320397,1761334232062,-150.0,0.00034644,7]
[392320398,1761334232071,-150.0,0.00034644,7]
[392320400,1761334232081,-150.79627063,0.00034644,7]
[392320401,1761334232091,-150.0,0.00034644,7]
[392320402,1761334232100,-150.0,0.00034644,7]
[392320403,1761334232111,-150.0,0.00034819,7]
[392320405,1761334232119,-150.0,0.00034994,7]
[392320406,1761334232129,-1000.0,0.00035,9]
[392320407,1761334232139,-1006.0,0.00035,8]
[392320408,1761334232149,-240.22756851,0.00035045,2]
[392320410,1761334232164,-151.24243149,0.00035045,2]
[392320411,1761334232175,-150.0,0.00035045,2]
[392320412,1761334232184,-150.0,0.00035045,120]
[392320413,1761334232195,-1848.75756851,0.00035054,7]
[392320414,1761334232206,-1403.84725605,0.00035054,7]
[392320416,1761334232226,-1205.39517544,0.00035054,7]
[392320417,1761334232236,-321.84600861,0.00035098,2]
[392320418,1761334232246,-150.0,0.00035169,7]
[392320420,1761334232256,-610.0,0.00035189,2]
[392320421,1761334232265,-800.9398617,0.00035225,120]
[392320422,1761334232277,-314.57995572,0.00035225,120]
[392320423,1761334232289,-2512.26,0.00035225,120]
[392320425,1761334232318,-830.22018258,0.00035225,120]
[392320426,1761334232329,-733.39,0.00035294,30]
[392320427,1761334232338,-150.0,0.00035344,7]
[392320429,1761334232347,-150.0,0.00035519,7]
[392320430,1761334232356,-168.0,0.00035596,2]
[392320431,1761334232370,-202.585796,0.00035616,7]
[392320432,1761334232380,-150.0,0.00035694,7]
[392320433,1761334232389,-1292.0,0.000358,14]
[392320437,1761334232399,-533.0,0.000358,2]
[392320440,1761334232408,-166.68,0.00035802,2]
[392320442,1761334232418,-150.0,0.00035869,7]
[392320444,1761334232427,-1219.48620234,0.00035894,2]
[392320445,1761334232437,-6139.4228872,0.00035894,2]
[392320446,1761334232447,-161.6481168,0.00035894,15]
[392320447,1761334232456,-13642.0,0.00035957,2]
[392320448,1761334232466,-500.0,0.00035973,2]
[392320449,1761334232475,-500.0,0.00035973,5]
[392320450,1761334232485,-500.0,0.00035973,5]
[392320451,1761334232495,-500.0,0.00035973,5]
[392320452,1761334232504,-500.0,0.00035973,5]
[392320453,1761334232514,-500.0,0.00035973,5]
[392320455,1761334232524,-501.28621431,0.00035973,5]
[392320456,1761334232533,-500.0,0.00035973,5]
[392320457,1761334232543,-500.0,0.00035973,5]
[392320458,1761334232553,-500.0,0.00035973,5]
[392320459,1761334232563,-500.0,0.00035973,5]
[392320461,1761334232573,-501.05788927,0.00035973,5]
[392320462,1761334232582,-500.0,0.00035973,5]
[392320463,1761334232592,-500.0,0.00035973,5]
[392320464,1761334232602,-500.0,0.00035973,5]
[392320465,1761334232612,-500.0,0.00035973,5]
[392320467,1761334232621,-504.64657269,0.00035973,5]
[392320468,1761334232630,-500.0,0.00035973,2]
[392320469,1761334232640,-476.87708629,0.00035973,5]
[392320470,1761334232650,-162.9,0.00035974,2]
[392320471,1761334232659,-151.0,0.00035978,2]
[392320473,1761334232669,-286.91819764,0.00035978,2]
[392320474,1761334232679,-151.0,0.00035978,2]
[392320475,1761334232689,-151.0,0.00035978,2]
[392320476,1761334232699,-151.0,0.00035978,2]
[392320478,1761334232708,-151.0,0.00035978,2]
[392320479,1761334232718,-151.0,0.00035978,2]
[392320480,1761334232728,-151.0,0.00035978,2]
[392320481,1761334232738,-151.0,0.00035978,2]
[392320483,1761334232751,-151.0,0.00035978,2]
[392320484,1761334232763,-151.0,0.00035978,2]
[392320485,1761334232773,-151.0,0.00035978,2]
[392320486,1761334232784,-151.0,0.00035978,2]
[392320488,1761334232796,-151.0,0.00035978,2]
[392320489,1761334232806,-151.0,0.00035978,2]
[392320490,1761334232815,-151.0,0.00035978,2]
[392320491,1761334232825,-151.0,0.00035978,2]
[392320492,1761334232836,-151.0,0.00035978,2]
[392320494,1761334232845,-151.0,0.00035978,2]
[392320495,1761334232855,-151.0,0.00035978,2]
[392320496,1761334232865,-151.0,0.00035978,2]
[392320497,1761334232877,-151.0,0.00035978,2]
[392320499,1761334232886,-151.0,0.00035981,14]
[392320500,1761334232896,-151.0,0.00035981,14]
[392320501,1761334232906,-1218.45664031,0.00035983,30]
[392320502,1761334232916,-203.31290234,0.00035983,15]
[392320510,1761334233226,-435.93145188,0.00035984,2]
[392320512,1761334233236,-78970.78679342,0.00035984,2]
[392320612,1761334237818,-11706.45401612,0.00035984,2]
[392320614,1761334237877,-15531.58776076,0.00035984,2]
[392320615,1761334237887,-11732.24411588,0.00035984,7]
[392320664,1761334240063,-19999.56230997,0.00035984,7]
[392320666,1761334240074,-410672.60357415,0.00035984,7]
[392320667,1761334240084,-300.0,0.00035994,7]
[392320668,1761334240093,-153.13337244,0.00035997,14]
[392320669,1761334240103,-217830.83114429,0.00036,2]
[392320670,1761334240113,-501.97573983,0.00036,5]
[392320672,1761334240122,-171.22188021,0.00036,5]
[392320673,1761334240131,-500.65389565,0.00036,5]
[392320674,1761334240141,-1000.0,0.00036005,2]
[392320675,1761334240152,-325.75,0.00036018,2]
[392320677,1761334240162,-476.35224409,0.00036027,2]
[392320678,1761334240172,-150.0,0.00036044,7]
[392320679,1761334240183,-666.0,0.00036047,3]
[392320680,1761334240192,-500.0,0.00036102,5]
[392320681,1761334240201,-397.0,0.00036191,120]
[392320683,1761334240210,-150.0,0.00036219,7]
[392320684,1761334240219,-168.0,0.00036271,2]
[392320685,1761334240228,-6139.42288713,0.00036345,2]
[392320686,1761334240238,-454.0,0.00036369,2]
[392320687,1761334240248,-150.0,0.00036394,7]
[392320689,1761334240258,-168.0,0.00036417,2]
[392320690,1761334240267,-475.59,0.00036466,2]
[392320691,1761334240276,-1195.8,0.00036469,2]
[392320692,1761334240286,-500.0,0.00036471,7]
[392320694,1761334240295,-397.0,0.00036471,7]
[392320695,1761334240305,-397.0,0.00036473,2]
[392320696,1761334240314,-168.0,0.00036481,2]
[392320697,1761334240323,-1000.0,0.00036521,2]
[392320698,1761334240332,-392.77690881,0.00036521,5]
[392320700,1761334240342,-571.28962105,0.00036521,5]
[392320701,1761334240351,-1000.0,0.00036521,5]
[392320702,1761334240360,-1000.0,0.00036521,5]
[392320703,1761334240369,-1000.0,0.00036521,5]
[392320704,1761334240379,-1000.0,0.00036521,5]
[392320706,1761334240388,-946.38832103,0.00036521,5]
[392320707,1761334240398,-500.0,0.00036521,5]
[392320708,1761334240407,-1000.0,0.00036521,2]
[392320709,1761334240416,-454.0,0.00036538,120]
[392320711,1761334240426,-150.0,0.00036547,2]
[392320712,1761334240435,-150.0,0.00036548,5]
[392320713,1761334240444,-150.0,0.00036548,5]
[392320714,1761334240454,-150.0,0.00036548,5]
[392320715,1761334240463,-150.0,0.00036548,5]
[392320717,1761334240472,-150.0,0.00036548,5]
[392320718,1761334240482,-150.77597293,0.00036548,5]
[392320719,1761334240492,-202.01765236,0.00036548,5]
[392320720,1761334240502,-207.27140812,0.00036548,5]
[392320722,1761334240512,-150.0,0.00036548,5]
[392320723,1761334240521,-150.0,0.00036548,5]
[392320724,1761334240531,-200.0,0.00036548,5]
[392320725,1761334240542,-150.0,0.00036548,5]
[392320726,1761334240552,-150.0,0.00036548,2]
[392320728,1761334240562,-150.0,0.00036548,5]
[392320729,1761334240572,-150.0,0.00036548,5]
[392320730,1761334240582,-150.0,0.00036548,2]
[392320731,1761334240592,-150.0,0.00036548,5]
[392320733,1761334240601,-150.0,0.00036548,2]
[392320734,1761334240611,-500.0,0.00036548,5]
[392320735,1761334240621,-500.0,0.00036548,5]
[392320736,1761334240631,-150.0,0.00036568,7]
[392320737,1761334240640,-150.0,0.00036568,7]
[392320739,1761334240649,-397.0,0.00036585,2]
[392320740,1761334240659,-150.0,0.00036603,5]
[392320741,1761334240668,-268.24179502,0.00036603,5]
[392320742,1761334240680,-150.0,0.00036603,5]
[392320744,1761334240690,-205.29554291,0.00036603,5]
[392320745,1761334240699,-150.0,0.00036603,5]
[392320746,1761334240709,-150.0,0.00036603,5]
[392320747,1761334240718,-150.0,0.00036603,5]
[392320748,1761334240727,-150.0,0.00036603,5]
[392320750,1761334240736,-500.0,0.00036603,5]
[392320751,1761334240746,-159.127829,0.00036634,30]
[392320752,1761334240755,-159.127829,0.00036634,30]
[392320753,1761334240765,-159.127829,0.00036634,30]
[392320755,1761334240774,-159.127829,0.00036634,30]
[392320756,1761334240783,-151.0,0.00036634,30]
[392320757,1761334240797,-151.0,0.00036634,30]
[392320758,1761334240806,-151.0,0.00036634,30]
[392320759,1761334240816,-151.0,0.00036634,30]
[392320761,1761334240831,-151.0,0.00036634,30]
[392320762,1761334240840,-151.0,0.00036634,30]
[392320763,1761334240850,-151.0,0.00036634,30]
[392320764,1761334240859,-151.0,0.00036634,30]
[392320766,1761334240869,-151.0,0.00036634,30]
[392320767,1761334240878,-151.0,0.00036634,30]
[392320768,1761334240888,-151.0,0.00036634,30]
[392320769,1761334240898,-151.0,0.00036634,30]
[392320770,1761334240908,-151.0,0.00036634,30]
[392320772,1761334240917,-151.0,0.00036634,30]
[392320773,1761334240926,-151.0,0.00036634,30]
[392320774,1761334240937,-151.0,0.00036634,30]
[392320775,1761334240946,-151.0,0.00036634,30]
[392320777,1761334240956,-151.0,0.00036634,30]
[392320778,1761334240965,-151.0,0.00036634,30]
[392320779,1761334240974,-151.0,0.00036634,30]
[392320780,1761334240984,-151.0,0.00036634,30]
[392320781,1761334240993,-151.0,0.00036634,30]
[392320783,1761334241003,-151.0,0.00036634,30]
[392320784,1761334241012,-151.0,0.00036634,30]
[392320785,1761334241022,-151.0,0.00036634,30]
[392320786,1761334241031,-151.0,0.00036634,30]
[392320787,1761334241042,-284.71726,0.00036634,30]
[392320789,1761334241051,-151.0,0.00036634,30]
[392320790,1761334241061,-151.0,0.00036634,30]
[392320791,1761334241071,-151.0,0.00036634,30]
[392320792,1761334241080,-151.0,0.00036634,30]
[392320794,1761334241090,-151.0,0.00036634,30]
[392320795,1761334241099,-151.0,0.00036634,30]
[392320796,1761334241109,-151.0,0.00036634,30]
[392320797,1761334241118,-250.0,0.00036658,5]
[392320798,1761334241128,-150.0,0.00036658,5]
[392320800,1761334241137,-150.0,0.00036658,5]
[392320801,1761334241147,-258.28035432,0.00036658,5]
[392320802,1761334241156,-150.0,0.00036658,5]
[392320803,1761334241166,-150.0,0.00036658,5]
[392320804,1761334241175,-500.0,0.00036658,5]
[392320806,1761334241185,-500.0,0.00036672,30]
[392320807,1761334241194,-150.0,0.00036712,5]
[392320808,1761334241204,-150.0,0.00036712,5]
[392320809,1761334241214,-165.94026784,0.00036712,5]
[392320810,1761334241224,-150.0,0.00036712,5]
[392320812,1761334241233,-500.0,0.00036712,5]
[392320813,1761334241243,-150.0,0.00036743,7]
[392320814,1761334241253,-200.0,0.00036767,5]
[392320815,1761334241262,-150.0,0.00036767,5]
[392320817,1761334241272,-150.0,0.00036767,5]
[392320818,1761334241283,-500.0,0.00036767,5]
[392320819,1761334241292,-151.0,0.00036788,30]
[392320820,1761334241302,-151.0,0.00036788,30]
[392320822,1761334241312,-151.0,0.00036788,30]
[392320823,1761334241328,-209.479651,0.00036788,30]
[392320824,1761334241338,-151.0,0.00036788,30]
[392320825,1761334241347,-239.076323,0.00036788,30]
[392320826,1761334241356,-239.076323,0.00036788,30]
[392320828,1761334241366,-239.076323,0.00036788,30]
[392320829,1761334241375,-239.076323,0.00036788,30]
[392320830,1761334241384,-151.0,0.00036788,30]
[392320831,1761334241393,-151.0,0.00036788,30]
[392320833,1761334241402,-151.0,0.00036788,30]
[392320834,1761334241412,-151.0,0.00036788,30]
[392320835,1761334241421,-151.0,0.00036788,30]
[392320836,1761334241430,-151.0,0.00036788,30]
[392320838,1761334241439,-151.0,0.00036788,30]
[392320839,1761334241449,-18136.234271,0.00036788,3]
[392320840,1761334241459,-13521.6275745,0.00036788,3]
[392320841,1761334241475,-6139.42288713,0.00036797,2]
[392320843,1761334241484,-500.0,0.00036798,30]
[392320844,1761334241494,-749.56052645,0.00036804,120]
[392320845,1761334241503,-32100.24379128,0.00036804,2]
[392320846,1761334241512,-500.0,0.00036822,5]
[392320847,1761334241522,-161.64811672,0.00036875,15]
[392320848,1761334241531,-500.0,0.00036877,5]
[392320849,1761334241543,-150.0,0.00036918,7]
[392320850,1761334241553,-500.0,0.00036932,5]
[392320851,1761334241562,-151.0,0.00036942,30]
[392320852,1761334241572,-151.0,0.00036942,30]
[392320853,1761334241581,-151.0,0.00036942,30]
[392320854,1761334241590,-151.0,0.00036942,30]
[392320855,1761334241599,-151.0,0.00036942,30]
[392320856,1761334241608,-151.0,0.00036942,30]
[392320857,1761334241618,-151.0,0.00036942,30]
[392320858,1761334241627,-151.0,0.00036942,30]
[392320859,1761334241636,-151.0,0.00036942,30]
[392320860,1761334241646,-151.0,0.00036942,30]
[392320862,1761334241655,-151.0,0.00036942,30]
[392320863,1761334241664,-151.0,0.00036942,30]
[392320864,1761334241674,-151.0,0.00036942,30]
[392320865,1761334241683,-151.0,0.00036942,30]
[392320866,1761334241693,-397.0,0.00036944,2]
[392320868,1761334241702,-500.0,0.00036973,30]
[392320869,1761334241711,-13521.6275745,0.0003698,3]
[392320870,1761334241721,-299.76347407,0.00036986,5]
[392320871,1761334241730,-159.127829,0.0003699,30]
[392320872,1761334241740,-159.127829,0.0003699,30]
[392320874,1761334241749,-159.127829,0.0003699,30]
[392320875,1761334241758,-159.127829,0.0003699,30]
[392320876,1761334241768,-151.0,0.0003699,30]
[392320877,1761334241777,-151.0,0.0003699,30]
[392320879,1761334241789,-151.0,0.0003699,30]
[392320880,1761334241800,-254.043692,0.0003699,30]
[392320881,1761334241809,-151.0,0.0003699,30]
[392320882,1761334241819,-151.0,0.0003699,30]
[392320883,1761334241828,-151.0,0.0003699,30]
[392320885,1761334241838,-151.0,0.0003699,30]
[392320886,1761334241848,-276.209474,0.0003699,30]
[392320887,1761334241860,-151.0,0.0003699,30]
[392320888,1761334241871,-151.0,0.0003699,30]
[392320890,1761334241880,-151.0,0.0003699,30]
[392320891,1761334241889,-151.0,0.0003699,30]
[392320892,1761334241904,-151.0,0.0003699,30]
[392320893,1761334241914,-151.0,0.0003699,30]
[392320895,1761334241923,-151.0,0.0003699,30]
[392320896,1761334241933,-151.0,0.0003699,30]
[392320897,1761334241942,-168.61578,0.0003699,30]
[392320898,1761334241952,-151.0,0.0003699,30]
[392320900,1761334241961,-151.0,0.0003699,30]
[392320901,1761334241971,-151.0,0.0003699,30]
[392320902,1761334241980,-151.0,0.0003699,30]
[392320903,1761334241990,-18136.234271,0.0003699,3]
[392320904,1761334241999,-151.0,0.0003699,30]
[392320906,1761334242008,-298.500176,0.0003699,30]
[392320907,1761334242018,-13521.6275745,0.0003699,3]
[392320908,1761334242029,-151.0,0.0003699,30]
[392320909,1761334242040,-151.0,0.0003699,30]
[392320911,1761334242050,-285.056444,0.0003699,30]
[392320912,1761334242059,-239.076323,0.0003699,30]
[392320913,1761334242068,-239.076323,0.0003699,30]
[392320914,1761334242078,-239.076323,0.0003699,30]
[392320916,1761334242087,-239.076323,0.0003699,30]
[392320917,1761334242097,-27451.1566543,0.00037,2]
[392320918,1761334242107,-151.0,0.00037,30]
[392320919,1761334242116,-151.0,0.00037,30]
[392320920,1761334242125,-151.0,0.00037,30]
[392320922,1761334242134,-197.061601,0.00037,30]
[392320923,1761334242143,-151.0,0.00037,30]
[392320924,1761334242153,-151.0,0.00037,30]
[392320925,1761334242163,-239.076323,0.00037,30]
[392320927,1761334242172,-239.076323,0.00037,30]
[392320928,1761334242182,-239.076323,0.00037,30]
[392320929,1761334242191,-239.076323,0.00037,30]
[392320930,1761334242201,-151.0,0.00037,30]
[392320936,1761334242416,-151.0,0.00037,30]
[392320938,1761334242428,-151.0,0.00037,30]
[392320939,1761334242438,-151.0,0.00037,30]
[392320940,1761334242448,-1219.48620233,0.00037038,2]
[392320941,1761334242457,-1517.37453729,0.00037068,2]
[392320942,1761334242467,-1000.0,0.00037068,5]
[392320944,1761334242476,-1500.0,0.00037068,5]
[392320945,1761334242485,-1500.0,0.00037068,5]
[392320946,1761334242495,-1000.0,0.00037068,5]
[392320947,1761334242504,-150.0,0.00037093,7]
[392320950,1761334242513,-151.0,0.00037095,30]
[392320951,1761334242523,-166.582358,0.00037095,30]
[392320952,1761334242533,-151.0,0.00037095,30]
[392320953,1761334242543,-151.0,0.00037095,30]
[392320954,1761334242552,-13521.6275745,0.00037127,3]
[392320956,1761334242561,-18136.234271,0.00037137,3]
[392320957,1761334242571,-155.34239287,0.000372,120]
[392320958,1761334242580,-155.34239285,0.000372,120]
[392320959,1761334242590,-6139.42288713,0.00037248,2]
[392320961,1761334242600,-500.0,0.00037259,30]
[392320964,1761334242610,-150.0,0.00037268,7]
[392320966,1761334242619,-547.6,0.00037288,2]
[392320968,1761334242629,-150.0,0.00037288,2]
[392320970,1761334242639,-150.0,0.00037288,2]
[392320972,1761334242648,-150.0,0.00037288,2]
[392320973,1761334242657,-500.0,0.00037307,30]
[392320974,1761334242667,-500.0,0.0003735,30]
[392320975,1761334242675,-1000.0,0.00037356,2]
[392320976,1761334242685,-454.0,0.00037359,2]
[392320978,1761334242695,-475.59,0.0003737,2]
[392320979,1761334242704,-246.32,0.0003737,2]
[392320980,1761334242713,-500.0,0.00037385,30]
[392320981,1761334242724,-19516.19754949,0.0003739,14]
[392320983,1761334242734,-151.0,0.0003739,30]
[392320984,1761334242743,-151.0,0.0003739,30]
[392320985,1761334242754,-239.076323,0.0003739,30]
[392320986,1761334242764,-239.076323,0.0003739,30]
[392320987,1761334242774,-239.076323,0.0003739,30]
[392320990,1761334242784,-239.076323,0.0003739,30]
[392320991,1761334242797,-151.0,0.0003739,30]
[392320992,1761334242806,-151.0,0.0003739,30]
[392320993,1761334242815,-151.0,0.0003739,30]
[392320995,1761334242825,-170.439241,0.0003739,30]
[392320996,1761334242836,-13521.6275745,0.00037408,3]
[392320998,1761334242845,-500.0,0.00037418,30]
[392321000,1761334242855,-500.0,0.00037436,30]
[392321002,1761334242865,-13521.6275745,0.00037442,3]
[392321003,1761334242875,-150.0,0.00037443,7]
[392321004,1761334242884,-18136.234271,0.00037446,3]
[392321005,1761334242893,-159.64,0.00037451,2]
[392321006,1761334242904,-202.87028618,0.00037452,2]
[392321008,1761334242914,-500.0,0.00037452,2]
[392321009,1761334242923,-505.0,0.00037452,2]
[392321010,1761334242933,-500.0,0.00037452,2]
[392321011,1761334242942,-179.31213936,0.00037452,2]
[392321012,1761334242952,-500.0,0.00037452,2]
[392321014,1761334242962,-1268.0,0.00037452,2]
[392321015,1761334242971,-159.127829,0.00037452,30]
[392321016,1761334242982,-159.127829,0.00037452,30]
[392321017,1761334242992,-159.127829,0.00037452,30]
[392321018,1761334243002,-159.127829,0.00037452,30]
[392321019,1761334243011,-151.0,0.00037452,30]
[392321021,1761334243020,-151.0,0.00037452,30]
[392321022,1761334243030,-151.0,0.00037452,30]
[392321023,1761334243043,-151.0,0.00037452,30]
[392321024,1761334243052,-151.0,0.00037452,30]
[392321025,1761334243063,-248.879167,0.00037452,30]
[392321026,1761334243072,-151.0,0.00037452,30]
[392321027,1761334243082,-151.0,0.00037452,30]
[392321028,1761334243091,-151.0,0.00037452,30]
[392321030,1761334243100,-151.0,0.00037452,30]
[392321031,1761334243110,-151.0,0.00037452,30]
[392321032,1761334243119,-151.0,0.00037452,30]
[392321033,1761334243128,-151.0,0.00037452,30]
[392321034,1761334243138,-151.0,0.00037452,30]
[392321035,1761334243147,-475.59,0.00037452,2]
[392321036,1761334243156,-2000.0,0.000375,2]
[392321038,1761334243166,-500.0,0.00037507,2]
[392321039,1761334243175,-505.0,0.00037507,2]
[392321040,1761334243186,-500.0,0.00037507,2]
[392321041,1761334243195,-500.0,0.00037507,2]
[392321042,1761334243206,-1268.0,0.00037507,2]
[392321043,1761334243215,-318.21,0.00037507,2]
[392321044,1761334243224,-547.6,0.00037507,2]
[392321046,1761334243233,-414.35,0.00037507,2]
[392321047,1761334243244,-168.52,0.00037507,2]
[392321048,1761334243253,-414.35,0.00037507,2]
[392321049,1761334243263,-547.6,0.00037507,2]
[392321050,1761334243272,-414.35,0.00037507,2]
[392321051,1761334243282,-151.0,0.00037507,30]
[392321052,1761334243293,-151.0,0.00037507,30]
[392321054,1761334243302,-151.0,0.00037507,30]
[392321055,1761334243312,-151.0,0.00037507,30]
[392321056,1761334243322,-239.076323,0.00037507,30]
[392321057,1761334243331,-239.076323,0.00037507,30]
[392321058,1761334243340,-239.076323,0.00037507,30]
[392321059,1761334243351,-239.07633,0.00037507,30]
[392321060,1761334243360,-151.0,0.00037507,30]
[392321062,1761334243370,-151.0,0.00037507,30]
[392321063,1761334243380,-151.0,0.00037507,30]
[392321064,1761334243390,-160.56398268,0.00037516,10]
[392321065,1761334243402,-696.48,0.00037541,2]
[392321066,1761334243412,-475.59,0.00037541,2]
[392321068,1761334243422,-13521.6275745,0.00037552,3]
[392321069,1761334243431,-500.0,0.00037562,2]
[392321070,1761334243441,-505.0,0.00037562,2]
[392321071,1761334243451,-500.0,0.00037562,2]
[392321072,1761334243461,-500.0,0.00037562,2]
[392321073,1761334243470,-1268.0,0.00037562,2]
[392321074,1761334243480,-500.0,0.00037562,2]
[392321076,1761334243489,-150.0,0.00037562,2]
[392321077,1761334243498,-258.30182387,0.00037562,2]
[392321078,1761334243508,-150.0,0.00037562,2]
[392321079,1761334243519,-500.0,0.00037562,2]
[392321080,1761334243528,-200.0,0.00037562,2]
[392321081,1761334243538,-150.0,0.00037562,2]
[392321083,1761334243549,-150.0,0.00037562,2]
[392321084,1761334243558,-264.98299232,0.00037562,2]
[392321085,1761334243568,-150.0,0.00037562,2]
[392321086,1761334243577,-150.0,0.00037562,2]
[392321087,1761334243587,-150.0,0.00037562,2]
[392321088,1761334243596,-151.0,0.00037562,30]
[392321090,1761334243605,-151.0,0.00037562,30]
[392321091,1761334243614,-151.0,0.00037562,30]
[392321093,1761334243623,-407.35292496,0.00037597,2]
[392321094,1761334243633,-18136.234271,0.00037606,3]
[392321095,1761334243642,-13521.6275745,0.00037606,3]
[392321096,1761334243652,-500.0,0.00037616,2]
[392321099,1761334243662,-505.0,0.00037616,2]
[392321101,1761334243671,-400.0,0.00037616,2]
[392321103,1761334243681,-500.0,0.00037616,2]
[392321104,1761334243690,-1268.0,0.00037616,2]
[392321105,1761334243699,-318.91738648,0.00037616,5]
[392321106,1761334243708,-500.0,0.00037616,5]
[392321108,1761334243717,-500.0,0.00037617,2]
[392321109,1761334243726,-500.0,0.00037617,2]
[392321110,1761334243736,-150.0,0.00037617,2]
[392321111,1761334243745,-150.0,0.00037617,2]
[392321112,1761334243755,-150.0,0.00037617,2]
[392321113,1761334243764,-150.0,0.00037618,7]
[392321115,1761334243775,-500.0,0.00037652,30]
[392321116,1761334243785,-151.0,0.00037671,30]
[392321117,1761334243800,-274.074325,0.00037671,30]
[392321118,1761334243810,-150.0,0.00037671,2]
[392321119,1761334243820,-505.0,0.00037671,2]
[392321120,1761334243829,-500.0,0.00037671,2]
[392321122,1761334243838,-1268.0,0.00037671,2]
[392321123,1761334243847,-300.0,0.00037672,2]
[392321124,1761334243856,-500.0,0.00037672,2]
[392321125,1761334243865,-200.0,0.00037672,2]
[392321126,1761334243877,-200.0,0.00037672,2]
[392321127,1761334243887,-227.61823771,0.00037672,2]
[392321129,1761334243896,-159.127829,0.00037674,30]
[392321130,1761334243905,-159.127829,0.00037674,30]
[392321131,1761334243914,-159.127829,0.00037674,30]
[392321132,1761334243923,-159.127829,0.00037674,30]
[392321133,1761334243936,-151.0,0.00037674,30]
[392321134,1761334243946,-151.0,0.00037674,30]
[392321136,1761334243955,-151.0,0.00037674,30]
[392321137,1761334243964,-151.0,0.00037674,30]
[392321138,1761334243974,-151.0,0.00037674,30]
[392321139,1761334243983,-151.0,0.00037674,30]
[392321140,1761334243993,-151.0,0.00037674,30]